[Event "Titled Tuesday Blitz May 24 Early 2022"]
[White "Artemenko, Oleg"]
[Black "Fernandez Barrera, Victor"]
[WhiteFideId "14201798"]
[BlackFideId "2261529"]
[WhiteElo "2287"]
[BlackElo "2189"]
[Result "1-0"]
[Round "10"]
[TimeControl "180+1"]
[Date "2022.05.25"]
[WhiteClock "0:01:44"]
[BlackClock "0:00:32"]

1. e4 {[%clk 0:03:00]}  c5 {[%clk 0:02:59]} 2. Nf3 {[%clk 0:03:00]}  d6 {[%clk 0:03:00]} 3. d4 {[%clk 0:03:00]}  cxd4 {[%clk 0:03:00]} 4. Nxd4 {[%clk 0:03:00]}  Nf6 {[%clk 0:03:01]} 5. Nc3 {[%clk 0:02:59]}  a6 {[%clk 0:03:02]} 6. h3 {[%clk 0:02:59]}  g6 {[%clk 0:03:01]} 7. g4 {[%clk 0:02:57]}  h5 {[%clk 0:03:02]} 8. g5 {[%clk 0:02:54]}  Nfd7 {[%clk 0:03:02]} 9. Be3 {[%clk 0:02:54]}  Bg7 {[%clk 0:03:03]} 10. Bg2 {[%clk 0:02:49]}  Nc6 {[%clk 0:03:03]} 11. O-O {[%clk 0:02:49]}  O-O {[%clk 0:03:03]} 12. f4 {[%clk 0:02:49]}  Nxd4 {[%clk 0:03:04]} 13. Bxd4 {[%clk 0:02:49]}  e5 {[%clk 0:03:05]} 14. fxe5 {[%clk 0:02:49]}  Nxe5 {[%clk 0:03:03]} 15. Be3 {[%clk 0:02:43]}  Nc4 {[%clk 0:02:57]} 16. Bc1 {[%clk 0:02:42]}  Nxb2 {[%clk 0:02:53]} 17. Qf3 {[%clk 0:02:39]}  Nc4 {[%clk 0:02:33]} 18. Rb1 {[%clk 0:02:38]}  b5 {[%clk 0:02:27]} 19. a4 {[%clk 0:02:33]}  Ne5 {[%clk 0:02:17]} 20. Qg3 {[%clk 0:02:29]}  Bd7 {[%clk 0:02:08]} 21. axb5 {[%clk 0:02:27]}  axb5 {[%clk 0:02:09]} 22. Nd5 {[%clk 0:02:23]}  Nc4 {[%clk 0:01:57]} 23. Nf6+ {[%clk 0:02:23]}  Kh8 {[%clk 0:01:57]} 24. Bf4 {[%clk 0:02:19]}  Qb6+ {[%clk 0:01:54]} 25. Kh2 {[%clk 0:02:19]}  Be6 {[%clk 0:01:52]} 26. Rfd1 {[%clk 0:02:13]}  Ra3 {[%clk 0:01:50]} 27. Rd3 {[%clk 0:02:09]}  Rfa8 {[%clk 0:01:45]} 28. e5 {[%clk 0:02:09]}  dxe5 {[%clk 0:01:42]} 29. Bxa8 {[%clk 0:02:05]}  exf4 {[%clk 0:01:36]} 30. Qg2 {[%clk 0:01:58]}  Rxd3 {[%clk 0:01:11]} 31. cxd3 {[%clk 0:01:54]}  Ne3 {[%clk 0:01:01]} 32. Qc6 {[%clk 0:01:51]}  Qxc6 {[%clk 0:00:55]} 33. Bxc6 {[%clk 0:01:50]}  Bf8 {[%clk 0:00:43]} 34. Rxb5 {[%clk 0:01:47]}  Bd6 {[%clk 0:00:43]} 35. Bf3 {[%clk 0:01:46]}  Kg7 {[%clk 0:00:32]} 36. Ne8+ {[%clk 0:01:44]} 1-0


[Site "https://www.chess.com"]

[Event "Titled Tuesday Blitz May 24 Early 2022"]
[White "Avinash, Ramesh"]
[Black "Coto Mederos, Michel"]
[WhiteFideId "45018340"]
[BlackFideId "3508528"]
[WhiteElo "1875"]
[BlackElo "2427"]
[Result "1-0"]
[Round "10"]
[TimeControl "180+1"]
[Date "2022.05.25"]
[WhiteClock "0:00:43"]
[BlackClock "0:00:03"]

1. e4 {[%clk 0:02:59]}  d5 {[%clk 0:02:58]} 2. exd5 {[%clk 0:02:59]}  Qxd5 {[%clk 0:02:58]} 3. Nf3 {[%clk 0:02:57]}  Nf6 {[%clk 0:02:58]} 4. Be2 {[%clk 0:02:53]}  Bf5 {[%clk 0:02:54]} 5. d4 {[%clk 0:02:50]}  e6 {[%clk 0:02:50]} 6. c4 {[%clk 0:02:50]}  Qd8 {[%clk 0:02:49]} 7. Nc3 {[%clk 0:02:49]}  Nbd7 {[%clk 0:02:43]} 8. O-O {[%clk 0:02:49]}  c6 {[%clk 0:02:42]} 9. Bf4 {[%clk 0:02:43]}  Be7 {[%clk 0:02:36]} 10. Rc1 {[%clk 0:02:42]}  O-O {[%clk 0:02:35]} 11. Qb3 {[%clk 0:02:40]}  Qb6 {[%clk 0:02:35]} 12. Rfd1 {[%clk 0:02:34]}  h6 {[%clk 0:02:20]} 13. h3 {[%clk 0:02:27]}  Rfd8 {[%clk 0:02:05]} 14. Qxb6 {[%clk 0:02:23]}  Nxb6 {[%clk 0:02:03]} 15. Ne5 {[%clk 0:02:15]}  Ne4 {[%clk 0:01:45]} 16. Nxe4 {[%clk 0:02:12]}  Bxe4 {[%clk 0:01:46]} 17. Kf1 {[%clk 0:02:07]}  Na4 {[%clk 0:01:37]} 18. b3 {[%clk 0:02:00]}  Nb6 {[%clk 0:01:37]} 19. Bf3 {[%clk 0:01:56]}  Bh7 {[%clk 0:01:27]} 20. Bh5 {[%clk 0:01:40]}  g6 {[%clk 0:01:19]} 21. Bf3 {[%clk 0:01:38]}  g5 {[%clk 0:01:20]} 22. Be3 {[%clk 0:01:34]}  Ba3 {[%clk 0:01:16]} 23. Ng4 {[%clk 0:01:24]}  Bxc1 {[%clk 0:01:11]} 24. Bxc1 {[%clk 0:01:23]}  Kg7 {[%clk 0:01:08]} 25. Bb2 {[%clk 0:01:21]}  f6 {[%clk 0:01:08]} 26. Re1 {[%clk 0:01:18]}  Re8 {[%clk 0:01:04]} 27. Nxf6 {[%clk 0:01:18]}  Kxf6 {[%clk 0:00:59]} 28. d5+ {[%clk 0:01:17]}  e5 {[%clk 0:00:59]} 29. dxc6 {[%clk 0:01:17]}  Bd3+ {[%clk 0:00:50]} 30. Kg1 {[%clk 0:01:16]}  Rab8 {[%clk 0:00:23]} 31. cxb7 {[%clk 0:01:11]}  Nd7 {[%clk 0:00:10]} 32. Bc6 {[%clk 0:01:07]}  Ke6 {[%clk 0:00:05]} 33. c5 {[%clk 0:00:58]}  e4 {[%clk 0:00:05]} 34. b4 {[%clk 0:00:58]}  Ne5 {[%clk 0:00:05]} 35. Bxe8 {[%clk 0:00:56]}  Rxe8 {[%clk 0:00:06]} 36. Bxe5 {[%clk 0:00:52]}  Kxe5 {[%clk 0:00:07]} 37. Rc1 {[%clk 0:00:49]}  Bb5 {[%clk 0:00:05]} 38. c6 {[%clk 0:00:47]}  Bxc6 {[%clk 0:00:05]} 39. Rxc6 {[%clk 0:00:48]}  Rb8 {[%clk 0:00:06]} 40. Rc7 {[%clk 0:00:48]}  Kd6 {[%clk 0:00:06]} 41. Rh7 {[%clk 0:00:47]}  Kc6 {[%clk 0:00:06]} 42. Rxh6+ {[%clk 0:00:47]}  Kxb7 {[%clk 0:00:07]} 43. Re6 {[%clk 0:00:45]}  Rd8 {[%clk 0:00:07]} 44. Rxe4 {[%clk 0:00:45]}  Rd1+ {[%clk 0:00:08]} 45. Kh2 {[%clk 0:00:46]}  Rd2 {[%clk 0:00:09]} 46. Kg3 {[%clk 0:00:46]}  Rxa2 {[%clk 0:00:09]} 47. Re5 {[%clk 0:00:46]}  Rb2 {[%clk 0:00:09]} 48. b5 {[%clk 0:00:46]}  Rb3+ {[%clk 0:00:08]} 49. f3 {[%clk 0:00:46]}  Rb4 {[%clk 0:00:03]} 50. Rxg5 {[%clk 0:00:46]}  Kb6 {[%clk 0:00:03]} 51. h4 {[%clk 0:00:47]}  Rb2 {[%clk 0:00:03]} 52. h5 {[%clk 0:00:47]}  Rb1 {[%clk 0:00:03]} 53. Kg4 {[%clk 0:00:43]} 1-0


[Site "https://www.chess.com"]

[Event "Titled Tuesday Blitz May 24 Early 2022"]
[White "Bortnyk, Olexandr"]
[Black "Antipov, Mikhail Al."]
[WhiteFideId "14120828"]
[BlackFideId "4107012"]
[WhiteElo "2723"]
[BlackElo "2512"]
[Result "0-1"]
[Round "10"]
[TimeControl "180+1"]
[Date "2022.05.24"]
[WhiteClock "0:00:01"]
[BlackClock "0:00:04"]

1. d4 {[%clk 0:03:00]}  Nf6 {[%clk 0:02:59]} 2. Nc3 {[%clk 0:03:00]}  d5 {[%clk 0:02:59]} 3. Bf4 {[%clk 0:02:59]}  g6 {[%clk 0:02:59]} 4. e3 {[%clk 0:02:58]}  Nh5 {[%clk 0:02:59]} 5. Be5 {[%clk 0:02:57]}  f6 {[%clk 0:02:59]} 6. Bg3 {[%clk 0:02:56]}  c6 {[%clk 0:02:50]} 7. Bd3 {[%clk 0:02:22]}  Be6 {[%clk 0:02:24]} 8. Nge2 {[%clk 0:02:16]}  Nxg3 {[%clk 0:02:17]} 9. hxg3 {[%clk 0:02:16]}  Bf7 {[%clk 0:02:16]} 10. Nf4 {[%clk 0:02:13]}  Bg7 {[%clk 0:02:13]} 11. e4 {[%clk 0:01:57]}  dxe4 {[%clk 0:02:08]} 12. Bxe4 {[%clk 0:01:55]}  f5 {[%clk 0:02:04]} 13. Bf3 {[%clk 0:01:48]}  Qxd4 {[%clk 0:02:03]} 14. Qe2 {[%clk 0:01:46]}  Qe5 {[%clk 0:02:02]} 15. O-O-O {[%clk 0:01:46]}  Qxe2 {[%clk 0:02:02]} 16. Ncxe2 {[%clk 0:01:44]}  e5 {[%clk 0:01:59]} 17. Nc3 {[%clk 0:01:11]}  O-O {[%clk 0:01:52]} 18. Nh3 {[%clk 0:01:12]}  h5 {[%clk 0:01:14]} 19. Kb1 {[%clk 0:01:08]}  Bf6 {[%clk 0:00:57]} 20. Rhe1 {[%clk 0:00:58]}  Na6 {[%clk 0:00:55]} 21. Be2 {[%clk 0:00:40]}  Nc5 {[%clk 0:00:50]} 22. Rd6 {[%clk 0:00:26]}  Be7 {[%clk 0:00:45]} 23. Rdd1 {[%clk 0:00:23]}  Rad8 {[%clk 0:00:46]} 24. b4 {[%clk 0:00:23]}  Ne6 {[%clk 0:00:43]} 25. a3 {[%clk 0:00:20]}  b5 {[%clk 0:00:38]} 26. Bf1 {[%clk 0:00:14]}  Rxd1+ {[%clk 0:00:35]} 27. Nxd1 {[%clk 0:00:15]}  Rd8 {[%clk 0:00:33]} 28. Nb2 {[%clk 0:00:14]}  e4 {[%clk 0:00:30]} 29. f3 {[%clk 0:00:15]}  exf3 {[%clk 0:00:27]} 30. gxf3 {[%clk 0:00:16]}  Bf6 {[%clk 0:00:24]} 31. Nd3 {[%clk 0:00:16]}  Nd4 {[%clk 0:00:25]} 32. Bg2 {[%clk 0:00:14]}  Nb3 {[%clk 0:00:22]} 33. f4 {[%clk 0:00:10]}  Nd2+ {[%clk 0:00:19]} 34. Kc1 {[%clk 0:00:11]}  Nc4 {[%clk 0:00:20]} 35. Bxc6 {[%clk 0:00:11]}  Nxa3 {[%clk 0:00:17]} 36. Ng5 {[%clk 0:00:11]}  Rc8 {[%clk 0:00:10]} 37. Nxf7 {[%clk 0:00:05]}  Rxc6 {[%clk 0:00:10]} 38. Nfe5 {[%clk 0:00:05]}  Rxc2+ {[%clk 0:00:09]} 39. Kd1 {[%clk 0:00:05]}  Rg2 {[%clk 0:00:04]} 40. Nd7 {[%clk 0:00:03]}  Bc3 {[%clk 0:00:03]} 41. Re7 {[%clk 0:00:02]}  Rd2+ {[%clk 0:00:03]} 42. Ke1 {[%clk 0:00:01]}  Rxd3+ {[%clk 0:00:04]} 43. Ke2 {[%clk 0:00:02]}  Rd6 {[%clk 0:00:03]} 44. Ne5 {[%clk 0:00:01]}  Nc4 {[%clk 0:00:02]} 45. Nf7 {[%clk 0:00:01]}  Rd2+ {[%clk 0:00:02]} 46. Kf3 {[%clk 0:00:01]}  Bd4 {[%clk 0:00:02]} 47. g4 {[%clk 0:00:01]}  hxg4+ {[%clk 0:00:02]} 48. Kg3 {[%clk 0:00:02]}  Bf2+ {[%clk 0:00:02]} 49. Kg2 {[%clk 0:00:01]}  Bh4+ {[%clk 0:00:03]} 50. Kf1 {[%clk 0:00:01]}  Bxe7 {[%clk 0:00:04]} 0-1


[Site "https://www.chess.com"]

[Event "Titled Tuesday Blitz May 24 Early 2022"]
[White "Brodowski, Piotr"]
[Black "Proudian, Armen"]
[WhiteFideId "1124480"]
[BlackFideId "2130734"]
[WhiteElo "2431"]
[BlackElo "2380"]
[Result "1-0"]
[Round "10"]
[TimeControl "180+1"]
[Date "2022.05.25"]
[WhiteClock "0:00:29"]
[BlackClock "0:00:31"]

1. e4 {[%clk 0:02:56]}  e5 {[%clk 0:02:59]} 2. Nf3 {[%clk 0:02:47]}  Nc6 {[%clk 0:02:59]} 3. d4 {[%clk 0:02:33]}  exd4 {[%clk 0:02:59]} 4. Bc4 {[%clk 0:02:32]}  Nf6 {[%clk 0:02:56]} 5. e5 {[%clk 0:02:25]}  d5 {[%clk 0:02:57]} 6. Bb5 {[%clk 0:02:23]}  Nd7 {[%clk 0:02:57]} 7. O-O {[%clk 0:02:17]}  Be7 {[%clk 0:02:57]} 8. Re1 {[%clk 0:02:03]}  O-O {[%clk 0:02:56]} 9. Bxc6 {[%clk 0:01:44]}  bxc6 {[%clk 0:02:57]} 10. Nxd4 {[%clk 0:01:44]}  Nb8 {[%clk 0:02:57]} 11. Nc3 {[%clk 0:01:15]}  c5 {[%clk 0:02:56]} 12. Nb3 {[%clk 0:01:12]}  c4 {[%clk 0:02:47]} 13. Qxd5 {[%clk 0:00:47]}  cxb3 {[%clk 0:02:30]} 14. Qxa8 {[%clk 0:00:44]}  bxc2 {[%clk 0:02:30]} 15. Qe4 {[%clk 0:00:41]}  Na6 {[%clk 0:02:12]} 16. Qxc2 {[%clk 0:00:39]}  Nb4 {[%clk 0:02:12]} 17. Qe4 {[%clk 0:00:35]}  Ba6 {[%clk 0:02:07]} 18. Be3 {[%clk 0:00:29]}  Bd3 {[%clk 0:02:07]} 19. Qg4 {[%clk 0:00:29]}  Nc2 {[%clk 0:02:06]} 20. Bh6 {[%clk 0:00:25]}  Bg6 {[%clk 0:02:03]} 21. Rad1 {[%clk 0:00:24]}  Qb8 {[%clk 0:01:59]} 22. Bc1 {[%clk 0:00:22]}  Nxe1 {[%clk 0:01:59]} 23. Rxe1 {[%clk 0:00:23]}  Rd8 {[%clk 0:01:50]} 24. h4 {[%clk 0:00:23]}  h5 {[%clk 0:01:49]} 25. Qf4 {[%clk 0:00:24]}  Qb4 {[%clk 0:01:48]} 26. g3 {[%clk 0:00:22]}  Qxf4 {[%clk 0:01:48]} 27. Bxf4 {[%clk 0:00:23]}  Bb4 {[%clk 0:01:43]} 28. e6 {[%clk 0:00:21]}  fxe6 {[%clk 0:01:43]} 29. Rxe6 {[%clk 0:00:21]}  Bf7 {[%clk 0:01:44]} 30. Ra6 {[%clk 0:00:21]}  Bc5 {[%clk 0:01:40]} 31. Rc6 {[%clk 0:00:18]}  Bb6 {[%clk 0:01:33]} 32. Kf1 {[%clk 0:00:15]}  Be8 {[%clk 0:01:26]} 33. Re6 {[%clk 0:00:15]}  Kf7 {[%clk 0:01:25]} 34. Re5 {[%clk 0:00:15]}  g6 {[%clk 0:01:23]} 35. Ke1 {[%clk 0:00:15]}  Bc6 {[%clk 0:01:23]} 36. Ne4 {[%clk 0:00:15]}  Rd5 {[%clk 0:00:52]} 37. Ng5+ {[%clk 0:00:13]}  Kf8 {[%clk 0:00:49]} 38. Re6 {[%clk 0:00:11]}  Ba5+ {[%clk 0:00:48]} 39. Ke2 {[%clk 0:00:10]}  Bb5+ {[%clk 0:00:48]} 40. Kf3 {[%clk 0:00:11]}  Bd3 {[%clk 0:00:44]} 41. Rf6+ {[%clk 0:00:08]}  Ke8 {[%clk 0:00:43]} 42. Ne6 {[%clk 0:00:08]}  Ke7 {[%clk 0:00:39]} 43. Bg5 {[%clk 0:00:08]}  Kd7 {[%clk 0:00:31]} 44. Nf4 {[%clk 0:00:07]}  Rd4 {[%clk 0:00:24]} 45. Ke3 {[%clk 0:00:06]}  Rxf4 {[%clk 0:00:15]} 46. Bxf4 {[%clk 0:00:04]}  Bb1 {[%clk 0:00:16]} 47. a3 {[%clk 0:00:04]}  Bb6+ {[%clk 0:00:16]} 48. Ke2 {[%clk 0:00:04]}  Bf5 {[%clk 0:00:16]} 49. b4 {[%clk 0:00:05]}  Ke7 {[%clk 0:00:17]} 50. Rc6 {[%clk 0:00:04]}  Kd7 {[%clk 0:00:16]} 51. Rc1 {[%clk 0:00:03]}  a5 {[%clk 0:00:17]} 52. Be3 {[%clk 0:00:03]}  axb4 {[%clk 0:00:16]} 53. axb4 {[%clk 0:00:04]}  Kd6 {[%clk 0:00:15]} 54. Bxb6 {[%clk 0:00:04]}  cxb6 {[%clk 0:00:15]} 55. Ke3 {[%clk 0:00:05]}  Kd5 {[%clk 0:00:16]} 56. Kf4 {[%clk 0:00:04]}  b5 {[%clk 0:00:17]} 57. Kg5 {[%clk 0:00:04]}  Bd3 {[%clk 0:00:17]} 58. Rc5+ {[%clk 0:00:04]}  Kd4 {[%clk 0:00:18]} 59. f3 {[%clk 0:00:04]}  Bc4 {[%clk 0:00:18]} 60. Kxg6 {[%clk 0:00:03]}  Kc3 {[%clk 0:00:19]} 61. Kg5 {[%clk 0:00:03]}  Kxb4 {[%clk 0:00:19]} 62. Rc8 {[%clk 0:00:03]}  Be2 {[%clk 0:00:19]} 63. f4 {[%clk 0:00:03]}  Bg4 {[%clk 0:00:19]} 64. Rb8 {[%clk 0:00:04]}  Kc5 {[%clk 0:00:19]} 65. f5 {[%clk 0:00:05]}  Kd6 {[%clk 0:00:18]} 66. f6 {[%clk 0:00:05]}  Be2 {[%clk 0:00:18]} 67. f7 {[%clk 0:00:05]}  Kc6 {[%clk 0:00:16]} 68. f8=Q {[%clk 0:00:06]}  Bc4 {[%clk 0:00:17]} 69. Qd8 {[%clk 0:00:07]}  Kc5 {[%clk 0:00:17]} 70. Rb6 {[%clk 0:00:07]}  Kb4 {[%clk 0:00:18]} 71. Qd6+ {[%clk 0:00:08]}  Kc3 {[%clk 0:00:18]} 72. Rxb5 {[%clk 0:00:09]}  Bxb5 {[%clk 0:00:19]} 73. Qc5+ {[%clk 0:00:10]}  Bc4 {[%clk 0:00:19]} 74. Kxh5 {[%clk 0:00:11]}  Kb3 {[%clk 0:00:17]} 75. Kg5 {[%clk 0:00:12]}  Be2 {[%clk 0:00:18]} 76. g4 {[%clk 0:00:12]}  Bc4 {[%clk 0:00:18]} 77. h5 {[%clk 0:00:13]}  Bd3 {[%clk 0:00:18]} 78. h6 {[%clk 0:00:14]}  Bb1 {[%clk 0:00:18]} 79. h7 {[%clk 0:00:15]}  Bxh7 {[%clk 0:00:19]} 80. Kh6 {[%clk 0:00:16]}  Bc2 {[%clk 0:00:19]} 81. g5 {[%clk 0:00:17]}  Bd1 {[%clk 0:00:18]} 82. g6 {[%clk 0:00:18]}  Be2 {[%clk 0:00:18]} 83. g7 {[%clk 0:00:19]}  Bc4 {[%clk 0:00:19]} 84. Qc7 {[%clk 0:00:20]}  Bg8 {[%clk 0:00:20]} 85. Qd8 {[%clk 0:00:21]}  Bc4 {[%clk 0:00:20]} 86. g8=Q {[%clk 0:00:21]}  Bxg8 {[%clk 0:00:21]} 87. Qxg8+ {[%clk 0:00:21]}  Kb2 {[%clk 0:00:22]} 88. Qe6 {[%clk 0:00:22]}  Ka1 {[%clk 0:00:23]} 89. Kg6 {[%clk 0:00:23]}  Kb2 {[%clk 0:00:23]} 90. Qd5 {[%clk 0:00:23]}  Kc3 {[%clk 0:00:24]} 91. Qe4 {[%clk 0:00:23]}  Kb2 {[%clk 0:00:25]} 92. Qd3 {[%clk 0:00:23]}  Ka1 {[%clk 0:00:26]} 93. Qe2 {[%clk 0:00:24]}  Kb1 {[%clk 0:00:27]} 94. Kf5 {[%clk 0:00:25]}  Ka1 {[%clk 0:00:27]} 95. Ke5 {[%clk 0:00:26]}  Kb1 {[%clk 0:00:28]} 96. Kd4 {[%clk 0:00:26]}  Ka1 {[%clk 0:00:29]} 97. Kc4 {[%clk 0:00:27]}  Kb1 {[%clk 0:00:30]} 98. Kb3 {[%clk 0:00:28]}  Kc1 {[%clk 0:00:31]} 99. Qc2# {[%clk 0:00:29]} 1-0


[Site "https://www.chess.com"]

[Event "Titled Tuesday Blitz May 24 Early 2022"]
[White "Buscar, Michael"]
[Black "Schut, Han"]
[WhiteFideId "2603616"]
[BlackFideId "1005561"]
[WhiteElo "2010"]
[BlackElo "2057"]
[Result "1-0"]
[Round "10"]
[TimeControl "180+1"]
[Date "2022.05.25"]
[WhiteClock "0:01:09"]
[BlackClock "0:00:08"]

1. e4 {[%clk 0:02:58]}  c5 {[%clk 0:02:57]} 2. Nf3 {[%clk 0:02:57]}  d6 {[%clk 0:02:57]} 3. Bb5+ {[%clk 0:02:57]}  Bd7 {[%clk 0:02:57]} 4. a4 {[%clk 0:02:57]}  g6 {[%clk 0:02:57]} 5. O-O {[%clk 0:02:57]}  Bg7 {[%clk 0:02:58]} 6. Re1 {[%clk 0:02:58]}  Nf6 {[%clk 0:02:54]} 7. Bf1 {[%clk 0:02:58]}  O-O {[%clk 0:02:54]} 8. c3 {[%clk 0:02:58]}  Nc6 {[%clk 0:02:48]} 9. d3 {[%clk 0:02:57]}  Rc8 {[%clk 0:02:43]} 10. Na3 {[%clk 0:02:57]}  e5 {[%clk 0:02:39]} 11. Nc4 {[%clk 0:02:57]}  Be6 {[%clk 0:02:39]} 12. Ne3 {[%clk 0:02:57]}  d5 {[%clk 0:02:38]} 13. exd5 {[%clk 0:02:56]}  Nxd5 {[%clk 0:02:38]} 14. g3 {[%clk 0:02:53]}  Qd7 {[%clk 0:02:36]} 15. Bg2 {[%clk 0:02:53]}  Rfd8 {[%clk 0:02:34]} 16. Nc4 {[%clk 0:02:53]}  f6 {[%clk 0:02:31]} 17. Qc2 {[%clk 0:02:42]}  Nb6 {[%clk 0:02:15]} 18. Nxb6 {[%clk 0:02:36]}  axb6 {[%clk 0:02:15]} 19. Rd1 {[%clk 0:02:33]}  Na5 {[%clk 0:02:15]} 20. c4 {[%clk 0:02:29]}  Bxc4 {[%clk 0:02:04]} 21. Ra3 {[%clk 0:02:17]}  Be6 {[%clk 0:01:49]} 22. Bd2 {[%clk 0:02:12]}  Nc6 {[%clk 0:01:50]} 23. Bc3 {[%clk 0:02:13]}  Nb4 {[%clk 0:01:41]} 24. Qe2 {[%clk 0:02:08]}  Bf5 {[%clk 0:01:16]} 25. Ne1 {[%clk 0:02:00]}  Nc6 {[%clk 0:01:13]} 26. a5 {[%clk 0:01:56]}  bxa5 {[%clk 0:01:08]} 27. Bxa5 {[%clk 0:01:56]}  Nxa5 {[%clk 0:01:03]} 28. Rxa5 {[%clk 0:01:57]}  b6 {[%clk 0:00:59]} 29. Ra6 {[%clk 0:01:57]}  Rb8 {[%clk 0:00:55]} 30. Rda1 {[%clk 0:01:55]}  Bxd3 {[%clk 0:00:53]} 31. Nxd3 {[%clk 0:01:56]}  Qxd3 {[%clk 0:00:54]} 32. Qg4 {[%clk 0:01:53]}  f5 {[%clk 0:00:50]} 33. Qg5 {[%clk 0:01:50]}  Rd7 {[%clk 0:00:34]} 34. Bc6 {[%clk 0:01:45]}  Rf7 {[%clk 0:00:23]} 35. Ra8 {[%clk 0:01:38]}  Rxa8 {[%clk 0:00:20]} 36. Rxa8+ {[%clk 0:01:38]}  Rf8 {[%clk 0:00:21]} 37. Ra7 {[%clk 0:01:39]}  Qd6 {[%clk 0:00:19]} 38. Bb5 {[%clk 0:01:33]}  e4 {[%clk 0:00:14]} 39. Bc4+ {[%clk 0:01:33]}  Kh8 {[%clk 0:00:15]} 40. b3 {[%clk 0:01:28]}  Qf6 {[%clk 0:00:15]} 41. Qf4 {[%clk 0:01:27]}  h6 {[%clk 0:00:08]} 42. Qc7 {[%clk 0:01:25]}  g5 {[%clk 0:00:08]} 43. Rb7 {[%clk 0:01:25]}  f4 {[%clk 0:00:08]} 44. Rxb6 {[%clk 0:01:25]}  Qd4 {[%clk 0:00:08]} 45. g4 {[%clk 0:01:19]}  e3 {[%clk 0:00:08]} 46. Rd6 {[%clk 0:01:15]}  exf2+ {[%clk 0:00:08]} 47. Kg2 {[%clk 0:01:12]}  Qe4+ {[%clk 0:00:08]} 48. Kxf2 {[%clk 0:01:13]}  Qe3+ {[%clk 0:00:08]} 49. Kf1 {[%clk 0:01:13]}  f3 {[%clk 0:00:09]} 50. Rd8 {[%clk 0:01:12]}  Qf4 {[%clk 0:00:09]} 51. Rxf8+ {[%clk 0:01:11]}  Qxf8 {[%clk 0:00:09]} 52. Qc6 {[%clk 0:01:09]}  f2 {[%clk 0:00:09]} 53. Qd5 {[%clk 0:01:09]}  Qf4 {[%clk 0:00:08]} 54. Qg8# {[%clk 0:01:09]} 1-0


[Site "https://www.chess.com"]

[Event "Titled Tuesday Blitz May 24 Early 2022"]
[White "Cardoso Cardoso, Jose Gabriel"]
[Black "Yaksin, Oleg"]
[WhiteFideId "4430492"]
[BlackFideId "24105880"]
[WhiteElo "2485"]
[BlackElo "2256"]
[Result "1-0"]
[Round "10"]
[TimeControl "180+1"]
[Date "2022.05.24"]
[WhiteClock "0:00:46"]
[BlackClock "0:00:02"]

1. c4 {[%clk 0:02:44]}  Nf6 {[%clk 0:02:59]} 2. Nc3 {[%clk 0:02:42]}  c5 {[%clk 0:02:58]} 3. Nf3 {[%clk 0:02:42]}  g6 {[%clk 0:02:58]} 4. e3 {[%clk 0:02:39]}  Bg7 {[%clk 0:02:58]} 5. d4 {[%clk 0:02:38]}  cxd4 {[%clk 0:02:59]} 6. exd4 {[%clk 0:02:37]}  d5 {[%clk 0:02:59]} 7. cxd5 {[%clk 0:02:35]}  O-O {[%clk 0:02:58]} 8. Bc4 {[%clk 0:02:33]}  Nbd7 {[%clk 0:02:58]} 9. O-O {[%clk 0:02:31]}  Nb6 {[%clk 0:02:58]} 10. Qb3 {[%clk 0:02:31]}  Bf5 {[%clk 0:02:48]} 11. Bg5 {[%clk 0:02:22]}  Rc8 {[%clk 0:02:19]} 12. Bxf6 {[%clk 0:02:22]}  Bxf6 {[%clk 0:02:19]} 13. Be2 {[%clk 0:02:21]}  Rc7 {[%clk 0:02:08]} 14. Rfd1 {[%clk 0:02:18]}  Rd7 {[%clk 0:01:58]} 15. Ne5 {[%clk 0:02:17]}  Rd6 {[%clk 0:01:58]} 16. Bf3 {[%clk 0:02:12]}  a6 {[%clk 0:01:43]} 17. a4 {[%clk 0:02:08]}  Qb8 {[%clk 0:01:14]} 18. a5 {[%clk 0:02:06]}  Nc8 {[%clk 0:01:12]} 19. Nc4 {[%clk 0:02:04]}  Rdd8 {[%clk 0:01:10]} 20. g4 {[%clk 0:01:54]}  Bd7 {[%clk 0:01:08]} 21. Ne4 {[%clk 0:01:54]}  Bg7 {[%clk 0:01:04]} 22. Nc5 {[%clk 0:01:54]}  Bb5 {[%clk 0:01:04]} 23. Kg2 {[%clk 0:01:43]}  Bxc4 {[%clk 0:00:56]} 24. Qxc4 {[%clk 0:01:43]}  Nd6 {[%clk 0:00:57]} 25. Qe2 {[%clk 0:01:42]}  Nb5 {[%clk 0:00:57]} 26. Qe3 {[%clk 0:01:42]}  Qc7 {[%clk 0:00:47]} 27. b4 {[%clk 0:01:40]}  Rfe8 {[%clk 0:00:42]} 28. Rac1 {[%clk 0:01:40]}  Qb8 {[%clk 0:00:41]} 29. h4 {[%clk 0:01:39]}  Rd6 {[%clk 0:00:29]} 30. g5 {[%clk 0:01:27]}  Rdd8 {[%clk 0:00:23]} 31. h5 {[%clk 0:01:24]}  Nd6 {[%clk 0:00:21]} 32. hxg6 {[%clk 0:01:23]}  hxg6 {[%clk 0:00:21]} 33. Bg4 {[%clk 0:01:21]}  Nb5 {[%clk 0:00:21]} 34. Qf3 {[%clk 0:01:09]}  Rd6 {[%clk 0:00:15]} 35. Nd7 {[%clk 0:01:04]}  Qd8 {[%clk 0:00:14]} 36. Ne5 {[%clk 0:01:04]}  Rf8 {[%clk 0:00:15]} 37. Rc8 {[%clk 0:01:03]}  Rxd5 {[%clk 0:00:08]} 38. Rxd8 {[%clk 0:01:02]}  Rdxd8 {[%clk 0:00:09]} 39. Nxf7 {[%clk 0:01:01]}  Nxd4 {[%clk 0:00:07]} 40. Rxd4 {[%clk 0:01:00]}  Rxd4 {[%clk 0:00:07]} 41. Be6 {[%clk 0:01:00]}  Bh8 {[%clk 0:00:02]} 42. Qh3 {[%clk 0:00:48]}  Bg7 {[%clk 0:00:02]} 43. Ne5+ {[%clk 0:00:46]} 1-0


[Site "https://www.chess.com"]

[Event "Titled Tuesday Blitz May 24 Early 2022"]
[White "Carrasco Miranda, Andres"]
[Black "Skytte, Rasmus"]
[WhiteFideId "3405990"]
[BlackFideId "1404210"]
[WhiteElo "2177"]
[BlackElo "2430"]
[Result "1-0"]
[Round "10"]
[TimeControl "180+1"]
[Date "2022.05.25"]
[WhiteClock "0:02:42"]
[BlackClock "0:02:26"]

1. d4 {[%clk 0:03:00]}  Nf6 {[%clk 0:02:57]} 2. c4 {[%clk 0:02:57]}  e6 {[%clk 0:02:56]} 3. g3 {[%clk 0:02:57]}  Bb4+ {[%clk 0:02:55]} 4. Nc3 {[%clk 0:02:57]}  Bxc3+ {[%clk 0:02:54]} 5. bxc3 {[%clk 0:02:57]}  d5 {[%clk 0:02:53]} 6. Bg2 {[%clk 0:02:57]}  dxc4 {[%clk 0:02:51]} 7. Nf3 {[%clk 0:02:57]}  c6 {[%clk 0:02:51]} 8. O-O {[%clk 0:02:57]}  O-O {[%clk 0:02:52]} 9. Ne5 {[%clk 0:02:57]}  Nbd7 {[%clk 0:02:49]} 10. Nxc4 {[%clk 0:02:57]}  Nb6 {[%clk 0:02:47]} 11. Ne5 {[%clk 0:02:57]}  Nbd7 {[%clk 0:02:47]} 12. Nd3 {[%clk 0:02:57]}  Qc7 {[%clk 0:02:46]} 13. Bf4 {[%clk 0:02:56]}  Qb6 {[%clk 0:02:43]} 14. e4 {[%clk 0:02:54]}  c5 {[%clk 0:02:41]} 15. Rb1 {[%clk 0:02:48]}  Qc6 {[%clk 0:02:32]} 16. e5 {[%clk 0:02:45]}  Nd5 {[%clk 0:02:27]} 17. c4 {[%clk 0:02:45]}  cxd4 {[%clk 0:02:24]} 18. cxd5 {[%clk 0:02:45]}  exd5 {[%clk 0:02:25]} 19. Nb4 {[%clk 0:02:42]}  Nc5 {[%clk 0:02:26]} 20. Nxc6 {[%clk 0:02:42]} 1-0


[Site "https://www.chess.com"]